fUSD/lending_fUSD_20250823
["ID","MTS","AMOUNT","RATE_DAILY","PERIOD"]
[381017932,1755948650495,-4953.74,0.00013698,2]
[381017933,1755948650508,-715.83,0.00013698,2]
[381017934,1755948650522,-1681.06,0.00013698,2]
[381017935,1755948650536,-954.45,0.00013698,2]
[381017936,1755948650549,-400.0,0.00013698,2]
[381017937,1755948650560,-837.37,0.00013698,2]
[381017938,1755948650571,-871.68,0.00013698,2]
[381017939,1755948650584,-400.0,0.00013698,2]
[381017940,1755948650597,-1234.25,0.00013698,2]
[381017941,1755948650611,-487.52,0.00013698,2]
[381017942,1755948650624,-575.59,0.00013698,2]
[381017943,1755948650638,-402.13351254,0.00013698,2]
[381017944,1755948650652,-400.0,0.00013698,2]
[381017945,1755948650665,-400.0,0.00013698,2]
[381017946,1755948650677,-781.72,0.00013698,2]
[381017947,1755948650691,-554.92,0.00013698,2]
[381017948,1755948650704,-400.0,0.00013698,2]
[381017949,1755948650718,-1339.05,0.00013698,2]
[381017950,1755948650730,-976.98,0.00013698,2]
[381017951,1755948650743,-400.0,0.00013698,2]
[381017952,1755948650756,-813.03,0.00013698,2]
[381017953,1755948650770,-775.88,0.00013698,2]
[381017954,1755948650783,-1580.78,0.00013698,2]
[381017955,1755948650795,-3173.62,0.00013698,2]
[381017956,1755948650806,-2259.71,0.00013698,2]
[381017957,1755948650817,-400.0,0.00013698,2]
[381017958,1755948650828,-601.23,0.00013698,2]
[381017959,1755948650842,-400.0,0.00013698,2]
[381017960,1755948650856,-2228.7,0.00013698,2]
[381017961,1755948650867,-400.0,0.00013698,2]
[381017962,1755948650878,-400.0,0.00013698,2]
[381017963,1755948650889,-782.18,0.00013698,2]
[381017964,1755948650901,-2549.39,0.00013698,2]
[381017965,1755948650917,-400.0,0.00013698,2]
[381017966,1755948650930,-764.67,0.00013698,2]
[381017967,1755948650941,-400.0,0.00013698,2]
[381017968,1755948650951,-1180.12,0.00013698,2]
[381017969,1755948650964,-400.0,0.00013698,2]
[381017970,1755948650975,-1678.03,0.00013698,2]
[381017971,1755948650987,-400.0,0.00013698,2]
[381017972,1755948651004,-995.33,0.00013698,2]
[381017973,1755948651015,-400.0,0.00013698,2]
[381017974,1755948651027,-974.58,0.00013698,2]
[381017975,1755948651039,-400.0,0.00013698,2]
[381017976,1755948651052,-400.0,0.00013698,2]
[381017977,1755948651063,-807.4,0.00013698,2]
[381017978,1755948651077,-4335.37,0.00013698,2]
[381017979,1755948651090,-746.06,0.00013698,2]
[381017980,1755948651102,-958.82699333,0.00013698,2]
[381017981,1755948651114,-1071.01,0.00013698,2]
[381017982,1755948651125,-798.87,0.00013698,2]
[381017983,1755948651138,-400.0,0.00013698,2]
[381017984,1755948651149,-1376.34,0.00013698,2]
[381017985,1755948651160,-640.2,0.00013698,2]
[381017986,1755948651172,-1159.22,0.00013698,2]
[381017987,1755948651183,-837.53,0.00013698,2]
[381017988,1755948651195,-585.37,0.00013698,2]
[381017989,1755948651207,-402.50966239,0.00013698,2]
[381017990,1755948651219,-843.79,0.00013698,2]
[381017991,1755948651230,-402.01669196,0.00013698,2]
[381017992,1755948651241,-1025.49,0.00013698,2]
[381017993,1755948651253,-401.15546072,0.00013698,2]
[381017994,1755948651264,-401.74,0.00013698,2]
[381017995,1755948651275,-400.0,0.00013698,2]
[381017996,1755948651287,-732.26,0.00013698,2]
[381017997,1755948651299,-400.0,0.00013698,2]
[381017998,1755948651311,-527.05,0.00013698,2]
[381017999,1755948651322,-899.9,0.00013698,2]
[381018000,1755948651342,-1172.0,0.00013698,2]
[381018001,1755948651353,-12359.08,0.00013698,2]
[381018002,1755948651364,-402.57842928,0.00013698,2]
[381018003,1755948651376,-400.0,0.00013698,2]
[381018004,1755948651388,-890.11,0.00013698,2]
[381018005,1755948651399,-2779.54,0.00013698,2]
[381018006,1755948651410,-400.0,0.00013698,2]
[381018007,1755948651421,-400.0,0.00013698,2]
[381018008,1755948651433,-909.47,0.00013698,2]
[381018009,1755948651445,-664.59,0.00013698,2]
[381018010,1755948651457,-685.52,0.00013698,2]
[381018011,1755948651468,-735.83,0.00013698,2]
[381018012,1755948651480,-400.0,0.00013698,2]
[381018013,1755948651492,-469.74,0.00013698,2]
[381018014,1755948651503,-561.99,0.00013698,2]
[381018015,1755948651516,-401.48309135,0.00013698,2]
[381018016,1755948651527,-518.63,0.00013698,2]
[381018017,1755948651539,-457.58,0.00013698,2]
[381018018,1755948651550,-648.07,0.00013698,2]
[381018019,1755948651562,-562.49,0.00013698,2]
[381018020,1755948651574,-658.03,0.00013698,2]
[381018021,1755948651586,-401.65949018,0.00013698,2]
[381018022,1755948651598,-603.06,0.00013698,2]
[381018023,1755948651610,-400.0,0.00013698,2]
[381018024,1755948651623,-724.39,0.00013698,2]
[381018025,1755948651635,-400.0,0.00013698,2]
[381018026,1755948651647,-749.58,0.00013698,2]
[381018027,1755948651659,-400.0,0.00013698,2]
[381018028,1755948651672,-400.63166369,0.00013698,2]
[381018029,1755948651683,-400.0,0.00013698,2]
[381018030,1755948651695,-466.46,0.00013698,2]
[381018031,1755948651708,-743.95,0.00013698,2]
[381018032,1755948651720,-400.0,0.00013698,2]
[381018033,1755948651732,-559.51,0.00013698,2]
[381018034,1755948651744,-400.0,0.00013698,2]
[381018035,1755948651756,-752.12,0.00013698,2]
[381018036,1755948651768,-499.8,0.00013698,2]
[381018037,1755948651780,-1042.8,0.00013698,2]
[381018038,1755948651792,-762.43,0.00013698,2]
[381018039,1755948651804,-637.51,0.00013698,2]
[381018040,1755948651816,-496.07126532,0.00013698,2]
[381018041,1755948651828,-725.9,0.00013698,2]
[381018042,1755948651841,-439.08,0.00013698,2]
[381018043,1755948651853,-434.7,0.00013698,2]
[381018044,1755948651865,-400.0,0.00013698,2]
[381018045,1755948651877,-630.87,0.00013698,2]
[381018046,1755948651889,-591.23,0.00013698,2]
[381018047,1755948651900,-454.94,0.00013698,2]
[381018048,1755948651912,-401.73419106,0.00013698,2]
[381018049,1755948651924,-400.0,0.00013698,2]
[381018050,1755948651936,-567.06,0.00013698,2]
[381018051,1755948651948,-669.75,0.00013698,2]
[381018052,1755948651962,-400.0,0.00013698,2]
[381018053,1755948651974,-476.79,0.00013698,2]
[381018054,1755948651986,-400.0,0.00013698,2]
[381018055,1755948652002,-581.79,0.00013698,2]
[381018056,1755948652014,-400.0,0.00013698,2]
[381018057,1755948652026,-400.0,0.00013698,2]
[381018058,1755948652039,-161.456,0.00013698,2]
[381018059,1755948652051,-890.12,0.00013698,2]
[381018060,1755948652063,-400.0,0.00013698,2]
[381018061,1755948652076,-400.0,0.00013698,2]
[381018062,1755948652089,-400.0,0.00013698,2]
[381018063,1755948652101,-1307.02,0.00013698,2]
[381018064,1755948652113,-460.84,0.00013698,2]
[381018065,1755948652124,-679.22,0.00013698,2]
[381018066,1755948652136,-927.1,0.00013698,2]
[381018067,1755948652148,-706.79,0.00013698,2]
[381018068,1755948652159,-400.0,0.00013698,2]
[381018069,1755948652171,-400.57632326,0.00013698,2]
[381018070,1755948652183,-1594.64,0.00013698,2]
[381018071,1755948652194,-400.0,0.00013698,2]
[381018072,1755948652206,-597.73,0.00013698,2]
[381018073,1755948652218,-1219.14,0.00013698,2]
[381018074,1755948652229,-459.11,0.00013698,2]
[381018075,1755948652242,-400.0,0.00013698,2]
[381018076,1755948652253,-400.0,0.00013698,2]
[381018077,1755948652265,-521.3,0.00013698,2]
[381018078,1755948652277,-620.72,0.00013698,2]
[381018079,1755948652290,-1795.75,0.00013698,2]
[381018080,1755948652302,-481.27,0.00013698,2]
[381018081,1755948652315,-683.45,0.00013698,2]
[381018082,1755948652327,-400.0,0.00013698,2]
[381018083,1755948652340,-400.0,0.00013698,2]
[381018084,1755948652351,-400.0,0.00013698,2]
[381018085,1755948652363,-400.35788675,0.00013698,2]
[381018086,1755948652376,-589.91,0.00013698,2]
[381018087,1755948652387,-400.0,0.00013698,2]
[381018088,1755948652399,-568.82,0.00013698,2]
[381018089,1755948652411,-980.33,0.00013698,2]
[381018090,1755948652423,-400.0,0.00013698,2]
[381018091,1755948652435,-776.79,0.00013698,2]
[381018092,1755948652446,-400.0,0.00013698,2]
[381018093,1755948652459,-400.0,0.00013698,2]
[381018094,1755948652470,-1014.43,0.00013698,2]
[381018095,1755948652482,-400.32946024,0.00013698,2]
[381018096,1755948652494,-400.0,0.00013698,2]
[381018097,1755948652505,-400.27476107,0.00013698,2]
[381018098,1755948652517,-540.67,0.00013698,2]
[381018099,1755948652528,-1348.8,0.00013698,2]
[381018100,1755948652540,-746.0,0.00013698,2]
[381018101,1755948652552,-578.22,0.00013698,2]
[381018102,1755948652564,-400.0,0.00013698,2]
[381018103,1755948652575,-7034.14,0.00013698,2]
[381018104,1755948652587,-400.0,0.00013698,2]
[381018105,1755948652599,-400.0,0.00013698,2]
[381018106,1755948652610,-400.0,0.00013698,2]
[381018107,1755948652622,-278.18585623,0.00013698,2]
[381018108,1755948652633,-406.32,0.00013698,2]
[381018109,1755948652645,-427.72,0.00013698,2]
[381018110,1755948652656,-400.0,0.00013698,2]
[381018111,1755948652667,-400.0,0.00013698,2]
[381018112,1755948652679,-1017.71,0.00013698,2]
[381018113,1755948652691,-4480.06,0.00013698,2]
[381018114,1755948652702,-910.19,0.00013698,2]
[381018115,1755948652717,-500.97,0.00013698,2]
[381018116,1755948652729,-400.79784191,0.00013698,2]
[381018117,1755948652740,-400.0,0.00013698,2]
[381018118,1755948652752,-1352.51,0.00013698,2]
[381018119,1755948652763,-2729.83,0.00013698,2]
[381018120,1755948652775,-400.0,0.00013698,2]
[381018121,1755948652787,-400.0,0.00013698,2]
[381018122,1755948652800,-1176.37,0.00013698,2]
[381018123,1755948652812,-400.0,0.00013698,2]
[381018124,1755948652823,-400.0,0.00013698,2]
[381018125,1755948652835,-400.0,0.00013698,2]
[381018126,1755948652847,-459.89,0.00013698,2]
[381018127,1755948652860,-543.26,0.00013698,2]
[381018128,1755948652871,-400.0,0.00013698,2]
[381018129,1755948652882,-400.0,0.00013698,2]
[381018130,1755948652894,-603.57,0.00013698,2]
[381018131,1755948652906,-400.91024499,0.00013698,2]
[381018132,1755948652917,-400.0,0.00013698,2]
[381018133,1755948652928,-400.0,0.00013698,2]
[381018134,1755948652939,-400.0,0.00013698,2]
[381018135,1755948652950,-401.09289055,0.00013698,2]
[381018136,1755948652964,-483.64,0.00013698,2]
[381018137,1755948652975,-400.0,0.00013698,2]
[381018138,1755948652986,-400.0,0.00013698,2]
[381018139,1755948652998,-400.0,0.00013698,2]
[381018140,1755948653012,-618.61,0.00013698,2]
[381018141,1755948653023,-401.97726713,0.00013698,2]
[381018142,1755948653034,-2025.9,0.00013698,2]
[381018143,1755948653047,-400.0,0.00013698,2]
[381018144,1755948653058,-1476.68,0.00013698,2]
[381018145,1755948653069,-480.75,0.00013698,2]
[381018146,1755948653081,-477.15,0.00013698,2]
[381018147,1755948653095,-400.0,0.00013698,2]
[381018148,1755948653106,-402.28437581,0.00013698,2]
[381018149,1755948653118,-876.51,0.00013698,2]
[381018150,1755948653129,-400.0,0.00013698,2]
[381018151,1755948653140,-400.0,0.00013698,2]
[381018152,1755948653152,-648.09,0.00013698,2]
[381018153,1755948653163,-500.0,0.00013699,2]
[381018154,1755948653174,-500.0,0.00013699,2]
[381018155,1755948653185,-200.0,0.00013699,2]
[381018156,1755948653196,-200.0,0.00013699,2]
[381018157,1755948653209,-200.0,0.00013699,2]
[381018158,1755948653220,-200.0,0.00013699,2]
[381018159,1755948653237,-200.253743,0.00013699,2]
[381018160,1755948653249,-610.0,0.00013699,2]
[381018161,1755948653265,-1000.0,0.00013699,2]
[381018162,1755948653277,-398.87,0.00013699,2]
[381018163,1755948653287,-1000.0,0.00013699,2]
[381018164,1755948653299,-3161.71,0.00013699,2]
[381018165,1755948653310,-300.0,0.00013699,2]
[381018166,1755948653321,-150.0,0.00013699,2]
[381018167,1755948653332,-192.2,0.000137,2]
[381018168,1755948653343,-192.2,0.000137,2]
[381018169,1755948653355,-2387.32,0.000137,2]
[381018170,1755948653366,-2387.32,0.000137,2]
[381018171,1755948653377,-1000.0,0.000137,2]
[381018172,1755948653388,-506.40091799,0.00013733,2]
[381018173,1755948653399,-5888.0,0.00013765,2]
[381018174,1755948653410,-1600.0,0.000138,5]
[381018175,1755948653421,-170.00674333,0.00013817,2]
[381018176,1755948653431,-5888.0,0.00013831,2]
[381018177,1755948653442,-200.0,0.00013835,2]
[381018178,1755948653454,-200.0,0.00013835,2]
[381018179,1755948653467,-150.0,0.00013838,2]
[381018180,1755948653479,-150.0,0.00013838,2]
[381018181,1755948653490,-500.0,0.00013838,2]
[381018182,1755948653501,-150.0,0.00013838,2]
[381018183,1755948653512,-200.0,0.00013838,2]
[381018184,1755948653524,-150.0,0.00013838,2]
[381018185,1755948653535,-500.0,0.00013838,2]
[381018186,1755948653547,-213.16,0.00013838,2]
[381018187,1755948653557,-473.0,0.00013838,2]
[381018188,1755948653568,-1270.0,0.00013838,2]
[381018189,1755948653579,-845.0,0.00013838,2]
[381018190,1755948653590,-5888.0,0.00013862,2]
[381018191,1755948653601,-210.23795538,0.00013867,2]
[381018192,1755948653612,-150.0,0.00013886,2]
[381018193,1755948653623,-323.3988717,0.00013886,2]
[381018194,1755948653634,-412.17503256,0.00013887,2]
[381018195,1755948653645,-500.95119342,0.00013887,2]
[381018196,1755948653656,-589.72735428,0.00013888,2]
[381018197,1755948653667,-678.50351513,0.00013888,2]
[381018198,1755948653679,-767.27967599,0.00013888,2]
[381018199,1755948653690,-856.05583685,0.00013889,2]
[381018200,1755948653701,-944.83199771,0.00013889,2]
[381018201,1755948653713,-1033.60815857,0.0001389,2]
[381018202,1755948653725,-3482.0,0.00013894,2]
[381018203,1755948653735,-1684.0,0.000139,2]
[381018204,1755948653747,-100000.0,0.000139,2]
[381018205,1755948653758,-151.0,0.000139,2]
[381018206,1755948653769,-225.764965,0.000139,2]
[381018207,1755948653780,-151.0,0.000139,2]
[381018208,1755948653791,-151.0,0.000139,2]
[381018209,1755948653802,-151.0,0.000139,2]
[381018210,1755948653813,-151.0,0.000139,2]
[381018211,1755948653823,-151.0,0.000139,2]
[381018212,1755948653834,-151.0,0.000139,2]
[381018213,1755948653845,-151.0,0.000139,2]
[381018214,1755948653856,-160.429263,0.000139,2]
[381018215,1755948653867,-160.429263,0.000139,2]
[381018216,1755948653878,-160.429263,0.000139,2]
[381018217,1755948653889,-151.0,0.000139,2]
[381018218,1755948653900,-160.429263,0.000139,2]
[381018219,1755948653911,-151.0,0.000139,2]
[381018220,1755948653925,-151.0,0.000139,2]
[381018221,1755948653937,-151.0,0.000139,2]
[381018222,1755948653949,-281.878533,0.000139,2]
[381018223,1755948653961,-151.0,0.000139,2]
[381018224,1755948653973,-151.0,0.000139,2]
[381018225,1755948653985,-151.0,0.000139,2]
[381018226,1755948653996,-151.0,0.000139,2]
[381018227,1755948654010,-151.0,0.000139,2]
[381018228,1755948654023,-151.0,0.000139,2]
[381018229,1755948654034,-151.0,0.000139,2]
[381018230,1755948654046,-151.0,0.000139,2]
[381018231,1755948654057,-151.0,0.000139,2]
[381018232,1755948654068,-151.0,0.000139,2]
[381018233,1755948654082,-151.0,0.000139,2]
[381018234,1755948654093,-151.0,0.000139,2]
[381018235,1755948654103,-275.140425,0.000139,2]
[381018236,1755948654115,-151.0,0.000139,2]
[381018237,1755948654126,-151.0,0.000139,2]
[381018238,1755948654137,-151.0,0.000139,2]
[381018239,1755948654148,-151.0,0.000139,2]
[381018240,1755948654160,-1000.0,0.000139,2]
[381018241,1755948654172,-300.0,0.000139,5]
[381018242,1755948654183,-9534.25,0.000139,2]
[381018243,1755948654195,-12543.17243029,0.000139,2]
[381018244,1755948654206,-151.0,0.00013901,2]
[381018245,1755948654218,-151.0,0.00013901,2]
[381018246,1755948654228,-151.0,0.00013901,2]
[381018247,1755948654240,-213.060546,0.00013901,2]
[381018248,1755948654252,-674.97090611,0.00013901,2]
[381018249,1755948654833,-220.620678,0.00013936,2]
[381018250,1755948654858,-160.429263,0.00013936,2]
[381018251,1755948654883,-160.429263,0.00013936,2]
[381018252,1755948654909,-160.429263,0.00013936,2]
[381018253,1755948654919,-151.0,0.00013936,2]
[381018254,1755948654929,-160.429263,0.00013936,2]
[381018255,1755948654939,-151.0,0.00013936,2]
[381018256,1755948654949,-151.0,0.00013936,2]
[381018257,1755948654959,-151.0,0.00013936,2]
[381018258,1755948654969,-151.0,0.00013936,2]
[381018259,1755948654979,-151.0,0.00013936,2]
[381018260,1755948654988,-151.0,0.00013936,2]
[381018261,1755948654999,-151.0,0.00013936,2]
[381018262,1755948655011,-151.0,0.00013936,2]
[381018263,1755948655021,-269.000353,0.00013936,2]
[381018264,1755948655032,-1249.06795426,0.00013936,2]
[381018265,1755948655042,-169.50061775,0.00013936,2]
[381018266,1755948655053,-3753.43271619,0.00013936,2]
[381018267,1755948655063,-170.96340366,0.00013936,2]
[381018268,1755948655073,-170.00674333,0.00013943,2]
[381018269,1755948655083,-150.0,0.00013958,2]
[381018270,1755948655093,-326.08215311,0.00013959,2]
[381018271,1755948655103,-415.59490103,0.00013959,2]
[381018272,1755948655113,-505.10764894,0.00013959,2]
[381018273,1755948655122,-594.62039685,0.0001396,2]
[381018274,1755948655132,-684.13314476,0.0001396,2]
[381018275,1755948655141,-773.64589268,0.00013961,2]
[381018276,1755948655151,-863.15864059,0.00013961,2]
[381018277,1755948655160,-952.6713885,0.00013962,2]
[381018278,1755948655170,-1042.18413642,0.00013962,2]
[381018279,1755948655179,-46441.07950086,0.00013962,2]
[381018280,1755948655189,-151.0,0.00013964,2]
[381018281,1755948655198,-151.0,0.00013964,2]
[381018282,1755948655209,-2000.0,0.00013971,2]
[381018283,1755948655218,-400.0,0.00013972,2]
[381018284,1755948655228,-400.0,0.00013972,2]
[381018285,1755948655237,-400.0,0.00013972,2]
[381018286,1755948655247,-707.26,0.00013972,2]
[381018287,1755948655257,-400.0,0.00013972,2]
[381018288,1755948655266,-403.38991615,0.00013972,2]
[381018289,1755948655275,-400.0,0.00013972,2]
[381018290,1755948655285,-584.18,0.00013972,2]
[381018291,1755948655294,-400.0,0.00013972,2]
[381018292,1755948655305,-823.23,0.00013972,2]
[381018293,1755948655314,-591.19,0.00013972,2]
[381018294,1755948655324,-400.0,0.00013972,2]
[381018295,1755948655335,-400.0,0.00013972,2]
[381018296,1755948655344,-408.16,0.00013972,2]
[381018297,1755948655354,-400.0,0.00013972,2]
[381018298,1755948655364,-400.0,0.00013972,2]
[381018299,1755948655373,-400.0,0.00013972,2]
[381018300,1755948655383,-400.0,0.00013972,2]
[381018301,1755948655392,-400.0,0.00013972,2]
[381018302,1755948655402,-403.38065045,0.00013972,2]
[381018303,1755948655411,-400.0,0.00013972,2]
[381018304,1755948655421,-400.0,0.00013972,2]
[381018305,1755948655430,-669.8,0.00013972,2]
[381018306,1755948655440,-400.0,0.00013972,2]
[381018307,1755948655450,-652.36,0.00013972,2]
[381018308,1755948655460,-400.0,0.00013972,2]
[381018309,1755948655470,-400.0,0.00013972,2]
[381018310,1755948655480,-400.0,0.00013972,2]
[381018311,1755948655490,-400.0,0.00013972,2]
[381018312,1755948655499,-400.0,0.00013972,2]
[381018313,1755948655508,-400.0,0.00013972,2]
[381018314,1755948655518,-400.0,0.00013972,2]
[381018315,1755948655527,-400.0,0.00013972,2]
[381018316,1755948655536,-151.0,0.00013972,2]
[381018317,1755948655546,-151.38969,0.00013972,2]
[381018318,1755948655555,-400.0,0.00013972,2]
[381018319,1755948655565,-307.80286881,0.00013972,2]
[381018320,1755948655575,-501.67281156,0.00013972,2]
[381018321,1755948655584,-718.29,0.00013972,2]
[381018322,1755948655593,-484.65,0.00013972,2]
[381018323,1755948655603,-400.0,0.00013972,2]
[381018324,1755948655612,-400.0,0.00013972,2]
[381018325,1755948655622,-400.0,0.00013972,2]
[381018326,1755948655632,-400.0,0.00013972,2]
[381018327,1755948655642,-200.54376101,0.00013972,2]
[381018328,1755948655651,-1519.72,0.00013972,2]
[381018329,1755948655661,-400.0,0.00013972,2]
[381018330,1755948655671,-400.0,0.00013972,2]
[381018331,1755948655680,-1062.57,0.00013972,2]
[381018332,1755948655691,-400.0,0.00013972,2]
[381018333,1755948655701,-400.0,0.00013972,2]
[381018334,1755948655712,-400.0,0.00013972,2]
[381018335,1755948655722,-596.19,0.00013972,2]
[381018336,1755948655732,-403.18,0.00013972,2]
[381018337,1755948655741,-400.0,0.00013972,2]
[381018338,1755948655750,-400.0,0.00013972,2]
[381018339,1755948655760,-498.02,0.00013972,2]
[381018340,1755948655769,-686.0,0.00013972,2]
[381018341,1755948655779,-426.64,0.00013972,2]
[381018342,1755948655789,-671.13,0.00013972,2]
[381018343,1755948655798,-400.0,0.00013972,2]
[381018344,1755948655808,-542.91,0.00013972,2]
[381018345,1755948655817,-400.0,0.00013972,2]
[381018346,1755948655827,-484.52,0.00013972,2]
[381018347,1755948655836,-400.0,0.00013972,2]
[381018348,1755948655846,-400.0,0.00013972,2]
[381018349,1755948655856,-400.0,0.00013972,2]
[381018350,1755948655865,-400.0,0.00013972,2]
[381018351,1755948655874,-655.64,0.00013972,2]
[381018352,1755948655884,-400.0,0.00013972,2]
[381018353,1755948655893,-579.14,0.00013972,2]
[381018354,1755948655902,-400.0,0.00013972,2]
[381018355,1755948655912,-530.3,0.00013972,2]
[381018356,1755948655921,-400.0,0.00013972,2]
[381018357,1755948655931,-375.93619323,0.00013972,2]
[381018358,1755948655941,-400.0,0.00013972,2]
[381018359,1755948655950,-400.0,0.00013972,2]
[381018360,1755948655960,-400.0,0.00013972,2]
[381018361,1755948655970,-400.0,0.00013972,2]
[381018362,1755948655979,-400.0,0.00013972,2]
[381018363,1755948655989,-546.8336414,0.00013972,2]
[381018364,1755948656001,-611.42,0.00013972,2]
[381018365,1755948656011,-400.0,0.00013972,2]
[381018366,1755948656020,-400.0,0.00013972,2]
[381018367,1755948656030,-434.28,0.00013972,2]
[381018368,1755948656039,-488.35,0.00013972,2]
[381018369,1755948656049,-400.0,0.00013972,2]
[381018370,1755948656059,-400.0,0.00013972,2]
[381018371,1755948656068,-578.91,0.00013972,2]
[381018372,1755948656080,-400.0,0.00013972,2]
[381018373,1755948656090,-622.06,0.00013972,2]
[381018374,1755948656103,-557.79,0.00013972,2]
[381018375,1755948656113,-400.0,0.00013972,2]
[381018376,1755948656123,-400.0,0.00013972,2]
[381018377,1755948656134,-400.0,0.00013972,2]
[381018378,1755948656144,-400.0,0.00013972,2]
[381018379,1755948656153,-400.0,0.00013972,2]
[381018380,1755948656164,-400.0,0.00013972,2]
[381018381,1755948656173,-401.92023094,0.00013972,2]
[381018382,1755948656183,-446.38,0.00013972,2]
[381018383,1755948656194,-400.0,0.00013972,2]
[381018384,1755948656203,-428.94,0.00013972,2]
[381018385,1755948656213,-400.0,0.00013972,2]
[381018386,1755948656223,-400.0,0.00013972,2]
[381018387,1755948656232,-403.26531337,0.00013972,2]
[381018388,1755948656241,-400.0,0.00013972,2]
[381018389,1755948656251,-400.0,0.00013972,2]
[381018390,1755948656260,-400.0,0.00013972,2]
[381018391,1755948656270,-400.0,0.00013972,2]
[381018392,1755948656280,-434.3,0.00013972,2]
[381018393,1755948656289,-697.18,0.00013972,2]
[381018394,1755948656299,-680.71,0.00013972,2]
[381018395,1755948656309,-446.05,0.00013972,2]
[381018396,1755948656318,-648.86,0.00013972,2]
[381018397,1755948656327,-400.0,0.00013972,2]
[381018398,1755948656337,-445.15,0.00013972,2]
[381018399,1755948656346,-1476.63,0.00013972,2]
[381018400,1755948656355,-400.0,0.00013972,2]
[381018401,1755948656365,-400.0,0.00013972,2]
[381018402,1755948656374,-400.0,0.00013972,2]
[381018403,1755948656383,-400.0,0.00013972,2]
[381018404,1755948656393,-400.0,0.00013972,2]
[381018405,1755948656403,-400.0,0.00013972,2]
[381018406,1755948656412,-400.0,0.00013972,2]
[381018407,1755948656422,-400.0,0.00013972,2]
[381018408,1755948656431,-400.0,0.00013972,2]
[381018409,1755948656443,-714.21,0.00013972,2]
[381018410,1755948656453,-400.0,0.00013972,2]
[381018411,1755948656463,-400.0,0.00013972,2]
[381018412,1755948656472,-400.0,0.00013972,2]
[381018413,1755948656482,-400.0,0.00013972,2]
[381018414,1755948656492,-400.0,0.00013972,2]
[381018415,1755948656502,-400.0,0.00013972,2]
[381018416,1755948656512,-519.87,0.00013972,2]
[381018417,1755948656522,-400.0,0.00013972,2]
[381018418,1755948656532,-400.0,0.00013972,2]
[381018419,1755948656542,-400.0,0.00013972,2]
[381018420,1755948656551,-400.0,0.00013972,2]
[381018421,1755948656561,-531.08,0.00013972,2]
[381018422,1755948656571,-620.42,0.00013972,2]
[381018423,1755948656580,-400.0,0.00013972,2]
[381018424,1755948656590,-400.0,0.00013972,2]
[381018425,1755948656599,-400.0,0.00013972,2]
[381018426,1755948656609,-400.0,0.00013972,2]
[381018427,1755948656618,-400.0,0.00013972,2]
[381018428,1755948656628,-542.8,0.00013972,2]
[381018429,1755948656637,-400.0,0.00013972,2]
[381018430,1755948656647,-400.0,0.00013972,2]
[381018431,1755948656657,-560.81,0.00013972,2]